Cogmind - Beta 12 @@@ ROGUE MODE // 2023.03.17 @ 04:00:08 Player: HybriD Result: Destroyed by P-60 Hacker with Shock Rifle Performance ------------- Evolutions (1) 500 Regions Visited (5) 1000 Robots Destroyed (6) 30 Value Destroyed (104) 104 Prototype IDs (1) 20 Alien Tech Used (0) 0 Bonus (0) 0 TOTAL SCORE: 1654 Bonus ------- None Cogmind --------- Core Integrity 0/400 Matter 203/300 Energy 80/100 System Corruption 8% Temperature Cool (90) Movement Core (50) Location -6/Proximity Caves Parts ------- > --- POWER (1) -------- (None) > --- PROPULSION (3) --- (None) > --- UTILITY (3) ------ (None) > --- WEAPON (2) ------- Medium Laser > --- INVENTORY (5) ---- Ion Engine Deuterium Engine Flight Unit Heavy Particle Cannon Peak State ------------ > --- POWER ------------ Light Ion Engine > --- PROPULSION ------- Wheel Compact Wheel > --- UTILITY ---------- Sensor Array Hacking Drone Bay > --- WEAPON ----------- Medium Laser Flak Cannon > --- INVENTORY -------- Ion Engine Deuterium Engine Flight Unit Heavy Particle Cannon Bore Cannon [Rating: 18] Favorites ----------- Power Light Ion Engine Engine Light Ion Engine Propulsion Compact Wheel Wheel Compact Wheel Utility Sensor Array Device Sensor Array Weapon Medium Laser Energy Gun Medium Laser Ballistic Cannon Flak Cannon Build | -11 -10 -9 -9 -7 -6 ------- Run | Jun Mat Mat Min Zio Pro Slots Evolved 2 | . . 2 . . . Power . | . . . . . . Propulsion 1 | . . 1 . . . Utility 1 | . . 1 . . . Weapon . | . . . . . . Parts Attached 10 | 5 1 1 . 1 2 Power 1 | 1 . . . . . Engine 1 | 1 . . . . . Core . | . . . . . . Reactor . | . . . . . . Propulsion 2 | 2 . . . . . Treads . | . . . . . . Leg . | . . . . . . Wheel 2 | 2 . . . . . Hover . | . . . . . . Flight . | . . . . . . Utility 2 | . 1 . . 1 . Device 2 | . 1 . . 1 . Storage . | . . . . . . Processor . | . . . . . . Hackware . | . . . . . . Protection . | . . . . . . Artifact . | . . . . . . Weapon 5 | 2 . 1 . . 2 Energy Gun 3 | 2 . . . . 1 Energy Cannon . | . . . . . . Ballistic Gun . | . . . . . . Ballistic Cannon 2 | . . 1 . . 1 Launcher . | . . . . . . Special Weapon . | . . . . . . Impact Weapon . | . . . . . . Slashing Weapon . | . . . . . . Piercing Weapon . | . . . . . . Special Melee Weapon . | . . . . . . Unidentified Prototypes 1 | . . . . 1 . Parts Lost 7 | . . . . . 7 Power 1 | . . . . . 1 Propulsion 2 | . . . . . 2 Utility 2 | . . . . . 2 Weapon 2 | . . . . . 2 Highest Loss Streak 7 | . . . . . 7 To Critical Strikes . | . . . . . . Average Slot Usage (%) 68 | . 75 66 66 71 67 Engine 11 | . 14 11 11 11 9 Wheel 21 | . 28 22 22 22 17 Device 12 | . 4 11 11 16 19 Energy Gun 12 | . 28 12 11 11 9 Ballistic Cannon 9 | . . 9 11 11 11 Naked Turns 1 | . . . . . 1 Heaviest Build 13 | 6 7 12 12 13 13 Greatest Support 26 | 26 26 26 26 26 26 Greatest Overweight (x) . | . . . . . . Average Overweight (x) . | . . . . . . Largest Inventory Capacity 5 | 5 5 5 5 5 5 Average Capacity 5 | 5 5 5 5 5 5 Most Carried 5 | 5 4 5 5 5 5 Average Carried 4 | 2 2 4 4 5 5 Final Capacity 5 | 5 5 5 5 5 5 Final Carried 5 | 2 3 5 5 5 4 Class Distribution -------------------- 100% | Mutant Dominant Class ---------------- Mutant | -10/Materials Mutant | -9/Materials Mutant | -9/Mines Mutant | -7/Zion Mutant | -6/Proximity Caves Resources | -11 -10 -9 -9 -7 -6 ----------- Run | Jun Mat Mat Min Zio Pro Matter Collected 299 | 192 54 . 6 . 47 Remotely . | . . . . . . Salvage Created 107 | . 54 . 6 . 47 Parts 11 | . 5 . 5 . 1 Haulers Intercepted . | . . . . . . Recyclers Shooed . | . . . . . . Parts Field Recycled . | . . . . . . Retrieved Matter . | . . . . . . Parts Self-Destructed 2 | . . . . . 2 Prevented . | . . . . . . Kills | -11 -10 -9 -9 -7 -6 ------- Run | Jun Mat Mat Min Zio Pro Combat Hostiles Destroyed 6 | . 3 . 2 . 1 Guns 3 | . 3 . . . . Cannons 3 | . . . 2 . 1 Classes Destroyed 2 | . 1 . . . 1 Swarmer 5 | . 3 . 2 . . Sentry 1 | . . . . . 1 Best Kill Streak 3 | . 3 . 2 . 1 Combat Bots Only 3 | . 3 . 2 . 1 Max Kills in Single Turn 2 | . 2 . 1 . 1 Gunslinging 1 | . 1 . . . . Exploded . | . . . . . . Melee . | . . . . . . Uniques/NPCs Destroyed . | . . . . . . Combat | -11 -10 -9 -9 -7 -6 -------- Run | Jun Mat Mat Min Zio Pro Damage Taken 1124 | . 30 . 86 . 1008 Core 414 | . 6 . 53 . 355 Absorbed by Shields . | . . . . . . Core Remaining (%) 98 | 100 97 . . . . Volleys Fired 19 | . 2 . 6 . 11 Largest 2 | . 2 . 2 . 2 Hottest 101 | . 90 . 94 . 101 Shots Fired 35 | . 4 . 12 . 19 Gun 15 | . 4 . 6 . 5 Cannon 20 | . . . 6 . 14 Launcher . | . . . . . . Special . | . . . . . . Kinetic 20 | . . . 6 . 14 Thermal 15 | . 4 . 6 . 5 Explosive . | . . . . . . Electromagnetic . | . . . . . . Robot Hit Streak 9 | . 2 . 5 . 9 Robot Miss Streak 6 | . 1 . 6 . 4 Penetration Max . | . . . . . . Secondary Targets 2 | . 2 . . . . Max Gunslinging Chain 1 | . 1 . . . . Shots Hit Robots 25 | . 3 . 7 . 15 Core Hits 30 | . 3 . 5 . 22 Critical Kills . | . . . . . . Critical Parts Destroyed 3 | . . . . . 3 Critical Strikes 4 | . . . . . 4 Burn 1 | . . . . . 1 Destroy 3 | . . . . . 3 Melee Attacks . | . . . . . . Impact . | . . . . . . Slashing . | . . . . . . Piercing . | . . . . . . Sneak Attacks . | . . . . . . Combat Hostiles . | . . . . . . Follow-up Attacks . | . . . . . . Damage Inflicted 489 | . 37 . 97 . 355 Guns 102 | . 37 . 12 . 53 Cannons 387 | . . . 85 . 302 Explosions . | . . . . . . Melee . | . . . . . . Ramming . | . . . . . . Kinetic 387 | . . . 85 . 302 Thermal 102 | . 37 . 12 . 53 Explosive . | . . . . . . Electromagnetic . | . . . . . . Impact . | . . . . . . Slashing . | . . . . . . Piercing . | . . . . . . Highest Corruption 7 | . . . . . 7 Average Corruption 4 | . . . . . 4 Corruption Purged . | . . . . . . Corruption Blocked . | . . . . . . Effects 1 | . . . . . 1 Matter Fused 1 | . . . . . 1 Overload Shots . | . . . . . . Overflow Damage . | . . . . . . Projectiles . | . . . . . . Explosions . | . . . . . . Melee . | . . . . . . Knockbacks 6 | . . . 3 . 3 Impact . | . . . . . . Kinetic 6 | . . . 3 . 3 Secondary . | . . . . . . Self-Inflicted Damage . | . . . . . . Shots . | . . . . . . Rammed . | . . . . . . Targets Rammed . | . . . . . . Kicked . | . . . . . . Crushed . | . . . . . . Highest Temperature 144 | . 60 . 144 . 90 Average Temperature 60 | . 33 . 72 . 58 Received Heat Transfer 90 | . . . . . 90 Siege Activations . | . . . . . . Robots Corrupted . | . . . . . . Combat Hostiles . | . . . . . . Parts Fried . | . . . . . . Impact Corruptions . | . . . . . . Robots Melted . | . . . . . . Combat Hostiles . | . . . . . . Parts Melted 1 | . . . . . 1 Heat Transferred 321 | . 99 . 37 . 185 Parts Sabotaged . | . . . . . . Parts Stolen . | . . . . . . Parts Stripped . | . . . . . . Power Chain Reactions . | . . . . . . Missiles Intercepted . | . . . . . . Alert | -11 -10 -9 -9 -7 -6 ------- Run | Jun Mat Mat Min Zio Pro Peak Influence 100 | . 70 41 100 . . Initial 29 | . . 29 15 . . Average 72 | . 51 35 95 . . Maximum Alert Level . | . . . . . . Low Security (%) 100 | 100 100 100 100 . . Level 1 . | . . . . . . Level 2 . | . . . . . . Level 3 . | . . . . . . Level 4 . | . . . . . . Level 5 . | . . . . . . High Security . | . . . . . . Max Security . | . . . . . . Squads Dispatched 1 | . . 1 . . . Investigation 1 | . . 1 . . . Extermination . | . . . . . . Reinforcement . | . . . . . . Assault . | . . . . . . Garrison . | . . . . . . Intercept . | . . . . . . Searches Triggered . | . . . . . . Construction Impeded . | . . . . . . Haulers Reinforced . | . . . . . . Active Scanning Responses . | . . . . . . Cargo Convoy Interrupts . | . . . . . . Stealth | -11 -10 -9 -9 -7 -6 --------- Run | Jun Mat Mat Min Zio Pro Distress Signals . | . . . . . . Communications Jammed . | . . . . . . Distress Signals . | . . . . . . Times Spotted 21 | . 3 1 9 . 8 Peak Tracking Total 7 | . 3 2 4 . 7 Tactical Retreats 1 | . . . 1 . . Traps | -11 -10 -9 -9 -7 -6 ------- Run | Jun Mat Mat Min Zio Pro Traps Triggered 1 | . . 1 . . . Indirectly . | . . . . . . Trap Hack Attempts . | . . . . . . Triggered . | . . . . . . Disarmed . | . . . . . . Reprogrammed . | . . . . . . Reused . | . . . . . . Traps Extracted . | . . . . . . Installed . | . . . . . . Triggered . | . . . . . . Machines | -11 -10 -9 -9 -7 -6 ---------- Run | Jun Mat Mat Min Zio Pro Machines Disabled . | . . . . . . Max in Single Turn . | . . . . . . Machines Repaired . | . . . . . . Machines Sabotaged . | . . . . . . Overloaded Fab Kills . | . . . . . . Hacking | -11 -10 -9 -9 -7 -6 --------- Run | Jun Mat Mat Min Zio Pro Machines Accessed 5 | . 3 2 . . . Terminals 5 | . 3 2 . . . Fabricators . | . . . . . . Repair Stations . | . . . . . . Recycling Units . | . . . . . . Scanalyzers . | . . . . . . Garrison Access . | . . . . . . Total Hacks 16 | . 9 7 . . . Successful 8 | . 5 3 . . . Failed 8 | . 4 4 . . . Catastrophic 2 | . . 2 . . . Database Lockouts . | . . . . . . Manual 3 | . 1 2 . . . Terminals 16 | . 9 7 . . . Fabricators . | . . . . . . Repair Stations . | . . . . . . Recycling Units . | . . . . . . Scanalyzers . | . . . . . . Garrison Access . | . . . . . . Terminal Hacks 8 | . 5 3 . . . Record 3 | . 1 2 . . . Branch Access Points 1 | . 1 . . . . Alert Level 1 | . 1 . . . . Hauler Manifests 1 | . 1 . . . . Zone Layout 2 | . 1 1 . . . Fabricator Hacks . | . . . . . . Repair Station Hacks . | . . . . . . Recycling Unit Hacks . | . . . . . . Scanalyzer . | . . . . . . Garrison Access Hacks . | . . . . . . Unauthorized Hacks . | . . . . . . Terminals . | . . . . . . Fabricators . | . . . . . . Repair Stations . | . . . . . . Recycling Units . | . . . . . . Scanalyzers . | . . . . . . Garrison Access . | . . . . . . Data Cores Recovered . | . . . . . . Used . | . . . . . . Hacking Detections 4 | . 2 2 . . . Full Trace Events . | . . . . . . Feedback Events . | . . . . . . Feedback Blocked . | . . . . . . Robot Schematics Acquired . | . . . . . . Robots Built . | . . . . . . Authchips . | . . . . . . Time . | . . . . . . Total Robot Build Rating . | . . . . . . Part Schematics Acquired . | . . . . . . Parts Built . | . . . . . . Authchips . | . . . . . . Time . | . . . . . . Total Part Build Rating . | . . . . . . Parts Repaired . | . . . . . . Time . | . . . . . . Parts Recycled . | . . . . . . Recycled Matter . | . . . . . . Retrieved Matter . | . . . . . . Retrieved Components . | . . . . . . Parts Scanalyzed . | . . . . . . Part Schematics Acquired . | . . . . . . Parts Damaged . | . . . . . . Bothacking | -11 -10 -9 -9 -7 -6 ------------ Run | Jun Mat Mat Min Zio Pro Used RIF Installer . | . . . . . . Robots Hacked . | . . . . . . Non-combat . | . . . . . . Combat . | . . . . . . Robot Hacks Applied . | . . . . . . Relay Couplers Released . | . . . . . . Fabnet Peak Effective % . | . . . . . . Robots Rewired . | . . . . . . Allies Hacked . | . . . . . . Hacks Repelled . | . . . . . . Allies | -11 -10 -9 -9 -7 -6 -------- Run | Jun Mat Mat Min Zio Pro Total Allies . | . . . . . . Largest Group . | . . . . . . Highest-Rated Group . | . . . . . . Highest-Rated Ally . | . . . . . . Total Orders . | . . . . . . Ally Attacks . | . . . . . . Total Damage . | . . . . . . Kills . | . . . . . . Allies Corrupted . | . . . . . . Allies Melted . | . . . . . . Intel | -11 -10 -9 -9 -7 -6 ------- Run | Jun Mat Mat Min Zio Pro Robot Analysis Total . | . . . . . . Derelict Logs Recovered . | . . . . . . Drone Launches . | . . . . . . Drone Recoveries . | . . . . . . Exploration | -11 -10 -9 -9 -7 -6 ------------- Run | Jun Mat Mat Min Zio Pro Turns Passed 760 | 39 93 81 334 75 138 Spaces Moved 729 | 35 93 85 320 82 114 Core 11 | 11 . . . . . Treads . | . . . . . . Legs . | . . . . . . Wheels 718 | 24 93 85 320 82 114 Hover . | . . . . . . Flight . | . . . . . . Fastest Speed 50 | 50 90 90 90 90 90 Average Speed 89 | 77 90 90 90 90 90 Slowest Speed 90 | 90 90 90 90 90 90 Overloaded Moves . | . . . . . . Propulsion Burnouts . | . . . . . . Robots Hopped . | . . . . . . Cave-ins Triggered . | . . . . . . Exploration Rate (%) 24 | 3 19 14 62 12 37 Regions Visited 5 Branch Regions 3 Pre-discovered Areas 1 | . . . 1 . . Known Exits Taken . | . . . . . . Unknown Exits Taken 5 | 1 1 1 1 1 . Scrap Searched . | . . . . . . Spaces Dug . | . . . . . . Terrain Destroyed . | . . . . . . Melee . | . . . . . . Projectile . | . . . . . . AOE . | . . . . . . Terrain Rammed . | . . . . . . Walls Destroyed . | . . . . . . Machines Disabled . | . . . . . . Actions | -11 -10 -9 -9 -7 -6 --------- Run | Jun Mat Mat Min Zio Pro Total 799 | 46 98 89 354 82 130 Wait 28 | . 1 . 26 . 1 Move 724 | 34 92 84 319 81 114 Hop . | . . . . . . Pick Up 13 | 7 2 3 1 . . Fast Attach 1 | . . . . 1 . Attach 8 | 5 1 1 . . 1 Detach . | . . . . . . Swap 1 | . . . . . 1 Drop 2 | . . 1 1 . . Fire 19 | . 2 . 6 . 11 Melee . | . . . . . . Ram . | . . . . . . Kick . | . . . . . . Crush . | . . . . . . Escape Stasis . | . . . . . . Rewire 3 | . . . 1 . 2 Trap . | . . . . . . Miscellaneous . | . . . . . . Route ------- -11/Junkyard -10/Materials (discovered 2 exits: *Mat / Min) -9/Materials -9/Mines -7/Zion -6/Proximity Caves History --------- Turn | Location | Event 11 | -11/Junkyard | Discovered new exit (range 15) 40 | -11/Junkyard | Entered Materials 121 | -10/Materials | Discovered new exit (range 15) 128 | -10/Materials | Identified exit to Mines 133 | -10/Materials | Entered another Materials area 133 | -9/Materials | Evolved 2 slots: Propulsion x1, Utility x1 209 | -9/Materials | Discovered new exit (range 6) 214 | -9/Materials | Entered Mines 245 | -9/Mines | Assembled infested the area 317 | -9/Mines | Build established: Mutant 370 | -9/Mines | A Derelict revealed a hidden shortcut to a safe place 417 | -9/Mines | Learned location of Storage (-7) 445 | -9/Mines | Found a hidden stash of uninstalled traps 457 | -9/Mines | A weapon hastily lodged in a ceiling crevice suddenly fell to the ground 548 | -9/Mines | Entered Zion 587 | -7/Zion | Given the Hacking Drone Bay 587 | -7/Zion | Found Prototype Device 587 | -7/Zion | Identified Hacking Drone Bay 609 | -7/Zion | Discovered new exit (range 16) 623 | -7/Zion | Entered Proximity Caves 676 | -6/Proximity Caves | Attracted the attention of an 0b10 checkpoint 686 | -6/Proximity Caves | Unaware initiated a cargo recovery operation 714 | -6/Proximity Caves | Encountered a Derelict guarding a broken Freighter 748 | -6/Proximity Caves | Core integrity fell below 50% 759 | -6/Proximity Caves | Core integrity fell below 20% 761 | -6/Proximity Caves | Destroyed by P-60 Hacker with Shock Rifle Last Messages --------------- 00752_ Destroyed Power Amplifier. 00752_ I-36 Angel knocked back. 00752_ Flak Cannon destroyed. 00754_ System corrupted: Matter fused (-5). 00754_ Slug penetrates P-60 Hacker. 00755_ X-72 Disruptor suffers critical hit (Destroy). 00755_ Destroyed Imp. Arc Projector. 00755_ X-72 Disruptor knocked back. 00756_ A-27 Freighter collects Prototype Leg. 00756_ A-27 Freighter destroyed. 00757_ I-36 Angel knocked back. 00757_ Slug penetrates I-36 Angel. 00757_ P-60 Hacker destroyed. 00759_ HV Slug penetrates Wall. 00759_ I-36 Angel suffers critical hit (Destroy). 00759_ Destroyed Imp. Deuterium Engine. 00760_ Com. Battery fries itself beyond repair. 00760_ Penetrated by Slug. 00760_ Bore Cannon destroyed. 00760_ Penetrated by Slug. Map ----- +----------------------------------------------------+ | ####???????????????????????????????????????????? | | ??????????????????????????????????????????? | | ????????????????????????????????????????????? | | #???????????????????????????????????????????????? | | #???????????????????????????????????????????????? | | #???????????????????????????????????????????????? | | ?????????????????????????????????????????????????? | | ?????????????????????????????????????????????????? | | ?????????????????????????????????????????????????? | | ?????????????????????????????????????????????????? | | ####?????????????????????????????????????????????? | | ##????????????????????????????????????????????? | | #????????????????????????????????????????????? | | #????????????????????????????????????????????? | | #????????????????????????????????????????????? | | #????????????????????????????????????????????? | | ##??????????????????????????#?????????????????? | | ##?????????????????????????? ##????????????????? | | ###?????????????????????????? ##???????????????? | | ????????????????????????????? ##??????????????? | | ????????????????????????????# #??????????????? | | ???????????????????????????# #??#???????????? | | ??????????????????????##### #?? ??????????? | | ??????????????????????# ;; x #?# ??????????? | | ???????????????????????#; ## ?????????? | | ??????? #????? ??#######@ p! ????????? | | #????# ##### ??# ## ; %%= #?????????? | | ##??# ??# % ;g%# i* h % #??????????? | | #?? ??# Ai# # #??????????? | | #??# ??## ## ##### #?????????? | | ##?# ???#### ##?????? ??????????? | | ### ??????# ##???????????????????? | | ## ## #####?# #????????????????????? | | #??# ### #????????????????????? | | #???# #????????????????????? | | ##???# #????????????????????? | | #### #????# #### ##???????????????????? | | #????# ##??# #???????????????????? | | #????#### #???## #???????????????????? | | #?####### #????## ????????????????? | | #?# ##????# ????????????? | | ### #???? ????????? | | ## ##???# ???????? | | ##????# ????????? | | ## ##?????# ????????? | | #?????? ????????? | | #?????? ## #?????????? | | ##????? ##?#### ##?????????? | | ##?????? #####??????###??????????? | | ## #####??????? #????????????????????????? | +----------------------------------------------------+ Best States ------------- Heat Dissipation 28 Energy Generation 10 Energy Capacity 125 Matter Stores 296 Matter Capacity 300 Sight Range 16 Robot Scan Range 14 Terrain Scan Density 10 Evasion (%) 50 Item Schematics ----------------- None Robot Schematics ------------------ None Fabricated ------------ Nothing Alien Tech Used ----------------- None Achievements -------------- None Challenges ------------ None Game ------ Seed RiotAlloySaw Manual? 0 Play Time 00:12:07 Cumulative 104.1 hours Start 2023.03.17 @ 03:49:37 End 2023.03.17 @ 04:00:08 Sessions 1 Manual Loads 0 Difficulty Rogue Special Mode None Game No. 103 Rogue 103 Adventurer 0 Explorer 0 Win Type - Total 1 Types 0/0/1/0/0/0/0/0/0 Lore% 42 Gallery% 57 Achievement% 31 Wizard Run 0 Options --------- ASCII 0 Keyboard 0 Movement Mouse Keybinds 0 Fullscreen 2 Font 18/Terminus Map View 76x50 Tactical HUD 1 Map Filters NONE Filters NONE Steam 1 RUN: f1737797-2831-4f40-9a3c-a654ebbb56c2